[Event "1st Chessable Sunway Formentera 2022"]
[Site "Formentera Punta Prima"]
[Date "2022.04.30"]
[Round "2"]
[White "Buivys, Martynas"]
[Black "Romanishin, Oleg M"]
[Result "0-1"]
[ECO "D71"]
[WhiteElo "1806"]
[BlackElo "2400"]
[Annotator "TA"]
[PlyCount "64"]
[EventDate "2022.05.05"]
[EventType "swiss"]
[EventCountry "ESP"]
[SourceTitle "playchess.com"]
[Source "ChessBase"]
[SourceQuality "1"]
[TimeControl "40/5400+30:1800+30"]

{[%evp 16,64,0,16,-2,-5,54,57,33,0,-14,-17,-27,-21,-17,-60,-85,-119,-112,-109,-114,-137,-147,-148,-148,-173,-176,-168,-167,-206,-204,-278,-64,-314,-309,-382,-377,-375,-316,-363,-362,-416,-414,-409,-392,-493,-486,-1030,-1020,-939,-914]} 1. c4 {[%emt 0:00:03]} e5 {[%emt 0:00:04]} 2. Nc3 {[%emt 0:00:08]} Nf6 {[%emt 0:00:04]} 3. g3 {[%emt 0:00:13]} d5 {[%emt 0:01:01]} 4. cxd5 {[%emt 0:00:11]} Nxd5 {[%emt 0:00:05]} 5. Bg2 {[%emt 0:00:12]} Nb6 {[%emt 0:00:06]} 6. e3 {[%emt 0:00:48]} g6 {[%emt 0:08:01]} 7. Nge2 {[%emt 0:00:47]} Bg7 {[%emt 0:00:38]} 8. O-O {[%emt 0:00:33]} O-O {[%emt 0:04:52]} 9. d4 {[%emt 0:06:37]} exd4 {[%emt 0:02:23] D71: Fianchetto Grünfeld: 3 g3 d5 sidelines and 5 cxd5 (without Nf3).} 10. Nxd4 {[%emt 0:17:19]} N8d7 {[%emt 0:03:27]} ({Black should play} 10... Qe7 $11) 11. a4 $14 {[%emt 0:09:08]} a5 {[%emt 0:03:40] [#] White is slightly better.} 12. Ndb5 $146 {[%emt 0:03:36]} (12. b3 $14) ({Predecessor:} 12. b3 Re8 13. Ba3 Bf8 14. Bxf8 Nxf8 15. Qc2 c6 16. Rad1 Qe7 17. Qb2 Nbd7 18. Rfe1 {½-½ (41) Kortschnoj,V-Gufeld,E Tbilisi 1967}) 12... c6 $11 {[%emt 0:01:06]} 13. Nd6 {[%emt 0:00:51]} Nc5 {[%emt 0:00:58] Strongly threatening ...Be6.} 14. Nce4 {[%emt 0:22:25]} Nxe4 {[%emt 0:01:11]} 15. Nxe4 {[%emt 0:04:36]} Nd5 {[%emt 0:02:06]} 16. Nc5 {[%emt 0:10:41]} Qe7 {[%emt 0:04:38]} 17. Bxd5 {[%emt 0:15:08]} Qxc5 {[%emt 0:00:28]} 18. Bb3 {[%emt 0:02:42]} Bh3 {[%emt 0:01:45][%cal Bc8h3,Bh3g4,Bg4f3][%mdl 32]} 19. Re1 {[%emt 0:00:01][%cal Bf1e1,Be1e2,Be2d2][%mdl 32]} Rad8 {[%emt 0:00:54] Black is more active.} 20. Qc2 {[%emt 0:01:16] [#]} Qb4 {[%emt 0:04:32][%cal Rb4e1]} 21. Re2 {[%emt 0:01:48]} Bg4 $40 {[%emt 0:12:36][%mdl 128] White is in trouble.} 22. Rd2 {[%emt 0:00:08]} Bf3 {[%emt 0:00:31] aiming for ...b5.} 23. Qc4 {[%emt 0:00:14]} c5 $2 {[%emt 0:05:42]} (23... Rxd2 $19 24. Qxb4 axb4 25. Bxd2 c5) 24. Qxb4 {[%emt 0:02:22] This costs White the game.} (24. Rxd8 $1 $15 Qe1+ 25. Qf1 Qxf1+ 26. Kxf1 Rxd8 27. Ke1) 24... axb4 $19 {[%emt 0:00:08]} ({Inferior is} 24... cxb4 25. Rxd8 Rxd8 26. Kf1 $17) 25. Kf1 {[%emt 0:00:29]} Rxd2 {[%emt 0:02:38]} 26. Bxd2 {[%emt 0:00:00]} Rd8 {[%emt 0:00:50]} 27. Ke1 {[%emt 0:00:29]} Bxb2 {[%emt 0:00:12]} 28. Rb1 {[%emt 0:00:02]} Bf6 {[%emt 0:01:44]} 29. Rc1 {[%emt 0:00:36]} Rd3 {[%emt 0:02:55]} 30. Bc4 {[%emt 0:01:26]} Ra3 {[%emt 0:05:02] Black is clearly winning.} 31. Bb5 {[%emt 0:00:36]} (31. a5 $142) 31... b3 {[%emt 0:00:51][%cal Bb4b3,Bb3b2][%mdl 32] [#] And now ...Be4 would win.} 32. Rb1 {[%emt 0:00:34]} b2 {[%emt 0:00:35] Weighted Error Value: White=0.59/Black=0.20 (precise)} 0-1

[Event "1st Chessable Sunway Formentera 2022"]
[Site "Formentera Punta Prima"]
[Date "2022.05.01"]
[Round "3"]
[White "Sargsyan, Shant"]
[Black "Jarmula, Lukasz"]
[Result "1/2-1/2"]
[ECO "D20"]
[WhiteElo "2641"]
[BlackElo "2459"]
[Annotator "TA"]
[PlyCount "49"]
[EventDate "2022.05.05"]
[EventType "swiss"]
[EventCountry "ESP"]
[SourceTitle "playchess.com"]
[Source "ChessBase"]
[SourceQuality "1"]
[TimeControl "40/5400+30:1800+30"]

{[%evp 9,49,45,59,52,57,45,37,44,42,49,43,32,33,45,53,46,67,47,43,54,62,59,83,70,83,77,75,82,83,81,82,81,76,61,36,30,79,0,0,0,0,0]} 1. d4 {[%emt 0:09:46]} d5 {[%emt 0:00:07]} 2. c4 {[%emt 0:00:13]} dxc4 {[%emt 0:00:06]} 3. e4 {[%emt 0:00:17]} b5 {[%emt 0:00:14]} 4. a4 {[%emt 0:00:44]} c6 {[%emt 0:00:06]} 5. axb5 {[%emt 0:00:20]} cxb5 {[%emt 0:00:07]} 6. Nc3 {[%emt 0:00:03] D20: Queen's Gambit Accepted: 3 e3 and 3 e4.} a6 {[%emt 0:00:08] [#]} 7. Nxb5 $1 {[%emt 0:01:00]} axb5 {[%emt 0:00:07]} 8. Rxa8 {[%emt 0:00:03] White is slightly better.} Bb7 {[%emt 0:00:08][%csl LRa8,LRe4]} 9. Ra1 {[%emt 0:01:12]} e6 $1 {[%emt 0:00:07]} 10. Ne2 {[%emt 0:02:24] aiming for f3.} Bxe4 {[%emt 0:00:31]} 11. Nc3 {[%emt 0:02:20][%csl LRb5,LRe4]} Bb4 {[%emt 0:00:06]} 12. Be2 $1 {[%emt 0:04:54]} Nf6 {[%emt 0:00:12]} 13. O-O {[%emt 0:00:39]} Bxc3 {[%emt 0:00:06]} 14. bxc3 {[%emt 0:00:04] Threatens to win with Ba3.} O-O {[%emt 0:00:09]} 15. Bg5 {[%emt 0:02:28]} h6 {[%emt 0:00:24]} 16. Bxf6 {[%emt 0:01:23]} Qxf6 {[%emt 0:00:08]} 17. Re1 {[%emt 0:06:46]} Nc6 {[%emt 0:01:26] [#]} 18. Bxc4 $1 {[%emt 0:06:18]} Bxg2 {[%emt 0:00:58][%mdl 64] Decoy} 19. Kxg2 {[%emt 0:00:22]} Qg5+ {[%emt 0:02:06]} 20. Kh1 {[%emt 0:00:26]} bxc4 {[%emt 0:00:06]} 21. Qf3 {[%emt 0:00:08]} Ne7 {[%emt 0:01:29] [#]} 22. Ra4 $146 {[%emt 0:03:44]} ({Predecessor:} 22. Re5 Qd2 23. Re2 Qg5 24. Re5 Qd2 25. Rg1 Qc2 26. Rc5 Qb3 27. h4 {½-½ (27) Ringoir,T (2479)-Yoo,C (2466) Charlotte 2021}) 22... Rc8 {[%emt 0:07:46]} (22... Qb5 $11 23. Rb4 Qa6) 23. Ra8 {[%emt 0:03:25]} ({Better is} 23. Rg1 $16 Qd2 24. Ra7) 23... Rxa8 $11 {[%emt 0:11:09]} 24. Qxa8+ {[%emt 0:00:04]} Kh7 {[%emt 0:00:10]} 25. Qf3 {[%emt 0:10:25] Weighted Error Value: White=0.05 (flawless) /Black=0.05 (flawless)} 1/2-1/2

[Event "1st Chessable Sunway Formentera 2022"]
[Site "Formentera Punta Prima"]
[Date "2022.05.01"]
[Round "3"]
[White "Cuenca Jimenez, Jose Fernando"]
[Black "Gukesh D"]
[Result "0-1"]
[ECO "D38"]
[WhiteElo "2551"]
[BlackElo "2659"]
[Annotator "TA"]
[PlyCount "92"]
[EventDate "2022.05.05"]
[EventType "swiss"]
[EventCountry "ESP"]
[SourceTitle "playchess.com"]
[Source "ChessBase"]
[SourceQuality "1"]
[TimeControl "40/5400+30:1800+30"]

{[%evp 12,92,6,13,26,21,35,0,20,0,5,0,0,0,2,0,11,0,19,0,0,0,0,0,0,0,0,0,43,0,-15,0,0,0,0,0,0,-8,29,45,64,75,58,62,47,80,72,69,69,-4,0,0,0,0,0,0,0,0,0,0,0,-72,-71,-75,-89,-154,-122,-333,-141,-152,-133,-147,-155,-206,-212,-788,-775,-12837,-12837,-29985,-29986,-29986,-29986]} 1. d4 {[%emt 0:00:05]} Nf6 {[%emt 0:01:11]} 2. c4 {[%emt 0:00:16]} e6 {[%emt 0:00:21]} 3. Nf3 {[%emt 0:00:49]} d5 {[%emt 0:00:35]} 4. Nc3 {[%emt 0:00:56]} Bb4 {[%emt 0:01:28]} 5. Qa4+ {[%emt 0:00:33]} Nc6 {[%emt 0:00:08]} 6. e3 {[%emt 0:00:09]} O-O {[%emt 0:00:09]} 7. Bd2 {[%emt 0:00:18]} Re8 {[%emt 0:00:26] D38: Queen's Gambit Declined: Ragozin Defence (4 Nf3 Bb4).} 8. a3 {[%emt 0:01:06]} Bf8 {[%emt 0:00:07]} 9. Qc2 {[%emt 0:00:47]} h6 {[%emt 0:08:08] The position is equal.} 10. cxd5 {[%emt 0:00:52]} exd5 {[%emt 0:00:07]} 11. Bd3 {[%emt 0:00:11]} Bg4 {[%emt 0:03:51]} 12. O-O {[%emt 0:00:08]} Bd6 {[%emt 0:00:12] [#]} 13. Nb5 $146 {[%emt 0:06:17]} ({Predecessor:} 13. Kh1 a6 14. Rac1 Qe7 15. Be1 g6 16. h3 Bxf3 17. gxf3 Nh5 18. Bxg6 fxg6 19. Qxg6+ {1-0 (91) Gupta,A (2628)-Aditya,M (2487) Kanpur 2022}) 13... Ne4 {[%emt 0:04:48]} 14. Nxd6 {[%emt 0:02:31]} Qxd6 {[%emt 0:00:23]} 15. Be1 {[%emt 0:13:39][%cal Of3e5]} Bxf3 {[%emt 0:02:39]} 16. gxf3 {[%emt 0:00:05]} Ng5 {[%emt 0:01:13]} 17. Kg2 {[%emt 0:08:22]} Qe6 {[%emt 0:17:26]} 18. Bf5 {[%emt 0:05:22] Prevents Qh3+.} Qf6 {[%emt 0:00:02][%cal Og5f3] And now ...Nxf3! would win.} 19. Bg4 {[%emt 0:05:39]} Rad8 {[%emt 0:01:12]} 20. b4 {[%emt 0:23:32]} (20. Rg1 $14) 20... Ne7 $11 {[%emt 0:07:38][%cal Oh6h5]} 21. h4 {[%emt 0:09:33]} ({But not} 21. Qxc7 h5 22. Bxh5 Qh6 $17) 21... Ne6 {[%emt 0:07:02]} 22. Rh1 {[%emt 0:00:04]} c6 {[%emt 0:05:03]} 23. a4 {[%emt 0:00:16]} g6 {[%emt 0:02:27]} 24. h5 $1 {[%emt 0:04:26]} Qg5 {[%emt 0:01:56] ...f5 is the strong threat.} 25. Kf1 $1 {[%emt 0:01:27]} f5 {[%emt 0:01:05]} 26. Bh3 {[%emt 0:00:11]} Qxh5 {[%emt 0:00:19]} 27. Bg2 {[%emt 0:00:15]} Qg5 {[%emt 0:00:05] aiming for ...f4.} 28. f4 {[%emt 0:00:07]} Qf6 {[%emt 0:00:05]} 29. Rxh6 {[%emt 0:00:33]} Kg7 {[%emt 0:02:58]} 30. Rh3 {[%emt 0:00:05]} (30. Rh1 $1 $14) 30... g5 {[%emt 0:04:08]} 31. fxg5 {[%emt 0:04:18]} Nxg5 {[%emt 0:00:03][%cal Be6g5,Bg5e4,Be4d6,Bd6c4][%mdl 32]} 32. Rg3 {[%emt 0:02:05] Strongly threatening f4.} Kf7 {[%emt 0:02:00]} 33. b5 {[%emt 0:02:39]} Ne4 {[%emt 0:02:28]} 34. Rh3 {[%emt 0:00:05]} Rh8 $1 {[%emt 0:01:34]} 35. Rxh8 {[%emt 0:01:05]} Rxh8 {[%emt 0:00:55]} 36. f3 {[%emt 0:00:15]} (36. bxc6 $11 {remains equal.} bxc6 37. Bb4) 36... Nd6 $17 {[%emt 0:03:39] Black is more active.} 37. bxc6 {[%emt 0:04:39]} bxc6 {[%emt 0:03:25]} 38. Qd3 {[%emt 0:01:23]} (38. Bg3 $142) 38... f4 {[%emt 0:02:54]} 39. exf4 $2 {[%emt 0:02:52] This move loses the game for White.} (39. e4 $17) 39... Qxf4 {[%emt 0:03:03]} (39... Nef5 $19 {is more deadly. Threatens to win with ...Nc4.} 40. Ra2 Qg6) 40. Bd2 {[%emt 0:00:00] [#]} Qf6 {[%emt 0:00:00]} 41. Re1 {[%emt 0:06:35]} Nc4 {[%emt 0:08:57]} 42. Be3 {[%emt 0:13:39] [#]} ({Avoid the trap} 42. Bb4 $2 Nf5 43. f4 Qg6 $19) (42. Rb1 $17) 42... Nf5 $1 $19 {[%emt 0:01:16] Hoping for ...Qg6. Pair of Knights!} 43. Bf2 $2 {[%emt 0:00:11]} (43. Bf4) 43... Qg6 {[%emt 0:00:37] ( -> ...Ng3+)} 44. f4 {[%emt 0:04:56]} Rh2 {[%emt 0:00:48]} 45. Bh3 {[%emt 0:03:36]} Rh1+ {[%emt 0:00:21]} 46. Ke2 {[%emt 0:00:21]} Qh5+ {[%emt 0:00:05] Weighted Error Value: White=0.70/Black=0.09 (flawless)} 0-1

[Event "1st Chessable Sunway Formentera 2022"]
[Site "Formentera Punta Prima"]
[Date "2022.05.01"]
[Round "3"]
[White "Batsiashvili, Nino"]
[Black "Song, Julien"]
[Result "1-0"]
[ECO "D32"]
[WhiteElo "2463"]
[BlackElo "2388"]
[Annotator "TA"]
[PlyCount "110"]
[EventDate "2022.05.05"]
[EventType "swiss"]
[EventCountry "ESP"]
[SourceTitle "playchess.com"]
[Source "ChessBase"]
[SourceQuality "1"]
[TimeControl "40/5400+30:1800+30"]

{[%evp 12,110,48,46,44,56,45,47,43,9,12,13,18,12,12,14,7,12,17,0,0,0,0,2,13,0,14,23,15,10,34,37,37,24,28,19,26,24,20,18,23,10,19,20,16,10,23,0,7,0,7,0,0,0,8,7,10,10,13,5,8,8,4,0,36,8,22,1,12,0,0,0,0,0,8,8,8,1,50,33,37,37,71,81,104,60,60,60,260,254,228,228,29957,12849,29972,29973,29973,29974,29974,29975,29973]} 1. d4 {[%emt 0:00:04]} d5 {[%emt 0:00:41]} 2. c4 {[%emt 0:00:06]} e6 {[%emt 0:00:52][%cal Be7e6,Be6d5,Bd5d4][%mdl 32]} 3. Nc3 {[%emt 0:00:14]} c5 {[%emt 0:01:29]} 4. cxd5 {[%emt 0:01:52]} exd5 {[%emt 0:00:46]} 5. Nf3 {[%emt 0:00:36]} Nc6 {[%emt 0:00:56]} 6. dxc5 {[%emt 0:01:14]} d4 {[%emt 0:01:12]} 7. Na4 {[%emt 0:00:09]} Bxc5 {[%emt 0:00:51][%mdl 64] [#] Decoy. D32: Tarrasch Defence: Sidelines and lines without g3.} 8. Nxc5 {[%emt 0:00:07] And now Nb3 would win.} Qa5+ {[%emt 0:00:11]} 9. Qd2 {[%emt 0:04:06]} Qxc5 {[%emt 0:00:36] White is slightly better.} 10. e3 $1 {[%emt 0:00:05][%mdl 4] is recently more successful than 10.a3.} (10. a3 $5 {[%cal Rb2b4]}) 10... dxe3 $1 {[%emt 0:01:12]} 11. Qxe3+ {[%emt 0:00:05]} Qxe3+ {[%emt 0:00:36]} 12. Bxe3 {[%emt 0:00:04]} Nge7 {[%emt 0:00:50]} 13. Bc4 {[%emt 0:05:00]} O-O {[%emt 0:12:52][%cal Bh8f8,Bf8d8,Bd8d4][%mdl 32]} 14. O-O {[%emt 0:01:53]} Bg4 {[%emt 0:10:30]} 15. Nd4 {[%emt 0:05:23]} Nxd4 {[%emt 0:06:07]} 16. Bxd4 {[%emt 0:00:02]} Rfd8 {[%emt 0:00:40]} 17. Be3 {[%emt 0:05:50] [#]} Nf5 $146 {[%emt 0:20:39]} ({Predecessor:} 17... Nd5 18. Bg5 f6 19. Bd2 Be6 20. Rfc1 Nc7 21. Ba5 b6 22. Bf1 Rac8 23. Be1 Nd5 {½-½ (52) Kopasov,E-Luise,M LSS email 2007}) 18. h3 {[%emt 0:15:12]} Bh5 {[%emt 0:15:25]} 19. Bg5 {[%emt 0:00:40] A strong pair of Bishops.} Rd4 {[%emt 0:01:12]} 20. b3 {[%emt 0:01:23]} h6 {[%emt 0:02:14]} (20... a6 $5 {[%cal Rb7b5]}) 21. Bc1 {[%emt 0:00:12]} Bg6 {[%emt 0:07:31]} 22. Bb2 {[%emt 0:03:22]} Rd7 {[%emt 0:02:02]} 23. Rfd1 {[%emt 0:04:07]} Rad8 {[%emt 0:00:43]} 24. Rxd7 {[%emt 0:01:27]} Rxd7 {[%emt 0:00:02]} 25. Bc3 {[%emt 0:01:43]} Nd4 {[%emt 0:04:13]} 26. Re1 {[%emt 0:02:08]} b5 {[%emt 0:01:11]} 27. Bf1 {[%emt 0:02:45]} a6 {[%emt 0:00:31]} 28. f3 {[%emt 0:11:28]} Ne6 {[%emt 0:00:04]} 29. Be5 {[%emt 0:04:17]} Rd2 {[%emt 0:03:39]} 30. Re2 {[%emt 0:02:56]} Rd1 {[%emt 0:00:34]} 31. Kf2 {[%emt 0:00:15]} Nc5 {[%emt 0:01:27]} 32. Rb2 {[%emt 0:02:55]} Bd3 {[%emt 0:01:01]} 33. Be2 {[%emt 0:00:27]} Bxe2 {[%emt 0:02:34]} 34. Kxe2 $11 {[%emt 0:01:26][%mdl 4096] Endgame KRB-KRN} Rg1 {[%emt 0:00:40]} 35. Ke3 {[%emt 0:00:28]} f6 {[%emt 0:00:25] [#] Hoping for ...Re1+.} 36. Bd6 {[%emt 0:01:21]} Ne6 {[%emt 0:00:32]} 37. Rc2 {[%emt 0:05:16]} Rd1 {[%emt 0:00:34]} 38. Rd2 {[%emt 0:02:48]} (38. Bb4 $5 {[%cal Rc2c6]}) 38... Rc1 {[%emt 0:01:18]} 39. Ke4 {[%emt 0:00:51]} Kf7 {[%emt 0:00:29]} 40. f4 {[%emt 0:00:00]} g6 {[%emt 0:00:00]} 41. Kd5 {[%emt 0:07:42]} f5 {[%emt 0:09:52]} 42. a4 {[%emt 0:16:16]} Rc3 {[%emt 0:06:37]} 43. axb5 {[%emt 0:01:10]} axb5 {[%emt 0:00:34]} 44. b4 {[%emt 0:00:27]} Rc4 {[%emt 0:05:40]} (44... h5 $11) 45. Bc5 $14 {[%emt 0:04:59]} Nxf4+ {[%emt 0:07:18]} 46. Kc6 {[%emt 0:00:06]} Ne6 {[%emt 0:00:24]} 47. Kxb5 {[%emt 0:00:21]} Rc3 {[%emt 0:00:36]} 48. Kc6 {[%emt 0:02:17]} g5 {[%emt 0:00:54]} 49. Rd5 {[%emt 0:02:58] aiming for Kd6.} g4 $2 {[%emt 0:03:09] Black cannot hold the game after this.} (49... Nf4 $1 $14 50. Rd7+ (50. Rxf5+ Ke6 $14) 50... Ke8 51. Re7+ Kd8) 50. Rxf5+ $18 {[%emt 0:04:44]} Kg6 {[%emt 0:00:01]} 51. Re5 {[%emt 0:00:15]} Nxc5 {[%emt 0:00:56]} (51... Nd8+ $18 52. Kd7 Rd3+ 53. Kc8 gxh3) 52. Rxc5 {[%emt 0:00:25]} Rb3 {[%emt 0:00:29]} 53. b5 {[%emt 0:00:21][%cal Bb4b5,Bb5b6][%mdl 32] White mates.} gxh3 {[%emt 0:00:21]} 54. gxh3 {[%emt 0:00:05]} Rxh3 {[%emt 0:00:35]} 55. b6 {[%emt 0:00:06]} Rf3 {[%emt 0:01:13] Weighted Error Value: White=0.06 (flawless) /Black=0.44} 1-0

[Event "1st Chessable Sunway Formentera 2022"]
[Site "Formentera Punta Prima"]
[Date "2022.05.01"]
[Round "3"]
[White "Park, Evan"]
[Black "Santos Ruiz, Miguel"]
[Result "0-1"]
[ECO "B96"]
[WhiteElo "2431"]
[BlackElo "2586"]
[Annotator "TA"]
[PlyCount "124"]
[EventDate "2022.05.05"]
[EventType "swiss"]
[EventCountry "ESP"]
[SourceTitle "playchess.com"]
[Source "ChessBase"]
[SourceQuality "1"]
[TimeControl "40/5400+30:1800+30"]

{[%evp 17,124,-1,22,-37,-20,-80,-68,-90,-98,-82,-16,-71,-52,-57,-52,-62,-66,-64,-48,-94,-91,-106,-101,-170,-27,-171,-160,-155,-32,-178,-171,-228,-247,-389,-388,-632,-318,-626,-218,-214,-120,-112,-108,-186,-177,-168,-191,-338,-334,-330,-321,-336,-333,-318,-296,-276,-259,-262,-263,-368,-360,-472,-468,-475,-362,-432,-437,-595,-592,-699,-696,-754,-731,-725,-684,-933,-929,-1268,-1275,-1337,-1183,-12786,-12786,-12786,-12786,-6095,-5722,-6111,-5743,-29982,-29982,-12804,-12793,-29988,-29989,-29989,-29990,-29992,-29993,-29993,-29994,-29994,-29995,-29995,-29996,-29997,-29991,-29997,-5293]} 1. e4 {[%emt 0:00:02]} c5 {[%emt 0:03:45]} 2. Nf3 {[%emt 0:00:07]} d6 {[%emt 0:00:04]} 3. d4 {[%emt 0:00:02]} cxd4 {[%emt 0:00:05]} 4. Nxd4 {[%emt 0:00:01]} Nf6 {[%emt 0:00:05]} 5. Nc3 {[%emt 0:00:03]} a6 {[%emt 0:00:03]} 6. Bg5 {[%emt 0:00:03]} e6 {[%emt 0:00:03]} 7. f4 {[%emt 0:00:14]} Qc7 {[%emt 0:00:04]} 8. Qf3 {[%emt 0:06:28] 8.Bxf6 is more fashionable.} b5 {[%emt 0:04:56]} 9. O-O-O {[%emt 0:11:54]} b4 {[%emt 0:04:45]} 10. Nb1 {[%emt 0:06:40] B96: Sicilian Najdorf: 6 Bg5 e6 7 f4, lines other than 7...Qb6 and 7...Be7.} (10. Na4 $11) 10... Nbd7 $15 {[%emt 0:06:51]} 11. g4 {[%emt 0:08:49]} (11. Nd2 $11) 11... Bb7 $17 {[%emt 0:03:25]} 12. Bxf6 {[%emt 0:01:26] Black is slightly better.} Nxf6 {[%emt 0:02:03]} 13. Nd2 {[%emt 0:01:55] [#]} Qb6 $146 {[%emt 0:18:12]} ({Better is} 13... g6 $17 14. Kb1 Bg7) ({Predecessor:} 13... Rc8 14. Bd3 Qb6 15. N4b3 d5 16. f5 Be7 17. Rhf1 exf5 18. exf5 O-O 19. g5 Ne4 {1-0 (32) Goncalves,R (1956)-Menna Barreto,F (2271) Jaragua do Sul 2015}) 14. N4b3 {[%emt 0:12:54]} (14. Nc4 Qc5 15. Nb3 Qc7 $15) (14. g5 $11 {keeps the balance.} Qxd4 15. gxf6) 14... d5 {[%emt 0:04:04]} 15. Bd3 {[%emt 0:00:29]} Be7 $36 {[%emt 0:01:41][%mdl 2048] Black fights for an advantage.} 16. g5 {[%emt 0:02:14] [#]} dxe4 $1 {[%emt 0:06:17]} 17. Nxe4 {[%emt 0:00:13]} Nd5 {[%emt 0:01:20]} 18. Rhe1 {[%emt 0:00:57] [#]} (18. h4 $15 {is superior.}) 18... g6 $1 {[%emt 0:03:11]} 19. h4 {[%emt 0:04:31]} a5 {[%emt 0:04:56]} 20. Nbd2 {[%emt 0:06:21]} (20. Bc4 $17 {was worth a try.} O-O 21. Bxd5 Bxd5 22. Qe3) 20... Qc7 {[%emt 0:14:57]} ({Black should play} 20... O-O $19 {And now ...a4 would win.} 21. Nc4 Qc7) 21. Nc4 {[%emt 0:03:11]} (21. Bb5+ $11 {and White has nothing to worry.} Kf8 22. Nc4) 21... O-O {[%emt 0:00:48]} (21... Qxf4+ $2 22. Qxf4 Nxf4 23. Ncd6+ Kf8 24. Nxb7 $18) 22. Ne5 {[%emt 0:02:17] [#]} b3 {[%emt 0:04:13]} (22... a4 $1 $17 {[%cal Ra4a3] Threatens to win with ...a3.} 23. Bc4 Rfc8) 23. axb3 {[%emt 0:03:05]} (23. a3 $1 $15) 23... a4 $19 {[%emt 0:15:14]} 24. Bc4 {[%emt 0:06:21]} (24. c4 $142) 24... axb3 {[%emt 0:00:00]} 25. Qxb3 {[%emt 0:01:23]} (25. c3 Rfd8 26. Rd4 (26. Bxb3 $2 Ra1+ 27. Kd2 Nxc3+ 28. Nd3 Bxe4 $19) 26... Qa5 $19) (25. cxb3 $142 Nb4 26. Qe3 (26. Rd7 $2 Rfd8 $19)) 25... Nxf4 {[%emt 0:00:00]} ({Not} 25... Ra1+ $2 26. Kd2 Rxd1+ 27. Kxd1 $19) 26. Qc3 $2 {[%emt 0:06:24]} (26. Nf6+ Bxf6 27. gxf6) 26... Ra1+ {[%emt 0:00:00]} 27. Kd2 {[%emt 0:00:01]} Rd8+ $2 {[%emt 0:00:00]} (27... Ra4 28. Nf6+ Bxf6) 28. Bd3 {[%emt 0:01:03]} Qb6 {[%emt 0:00:23]} ({Black should try} 28... Rxd1+ $19 29. Kxd1 Qxc3 30. bxc3 Ng2) 29. Nc4 $17 {[%emt 0:04:09]} (29. Rxa1 $2 {too greedy.} Bb4 30. Rf1 (30. Nf6+ $2 Kg7 $19) 30... Nxd3 31. Nf6+ Kg7 32. cxd3 Bxc3+ 33. bxc3 Qb2+ 34. Ke3 Qxc3 $19) 29... Rxd1+ {[%emt 0:01:11]} 30. Kxd1 {[%emt 0:02:45]} (30. Rxd1 $17 Qc7 31. Ne3 Qxc3+ 32. Kxc3) 30... Qd4 {[%emt 0:01:26] Really sharp!} 31. Qxd4 {[%emt 0:02:13]} Rxd4 {[%emt 0:00:03]} 32. Kd2 {[%emt 0:00:45]} (32. Ne5 $142) 32... Nxd3 {[%emt 0:00:23]} 33. cxd3 {[%emt 0:00:17]} Bb4+ {[%emt 0:00:04]} 34. Nc3 {[%emt 0:00:08]} Rxh4 {[%emt 0:00:02]} 35. Re5 {[%emt 0:00:22]} Bd5 {[%emt 0:00:31]} 36. Kc2 {[%emt 0:02:24]} Bxc4 {[%emt 0:00:27]} 37. dxc4 {[%emt 0:06:47]} Rxc4 $19 {[%emt 0:00:09][%mdl 4096] Endgame KRB-KRN} 38. Kb3 {[%emt 0:00:00]} Rd4 {[%emt 0:00:50]} 39. Ne4 {[%emt 0:00:00]} Kg7 {[%emt 0:00:39]} 40. Nf6 {[%emt 0:00:00]} Be7 {[%emt 0:00:00]} 41. Kc3 {[%emt 0:00:00]} Rf4 {[%emt 0:01:16]} 42. Nd7 {[%emt 0:00:00]} Rg4 {[%emt 0:00:41]} 43. Nc5 {[%emt 0:00:00]} Bxg5 {[%emt 0:00:34]} 44. Re4 {[%emt 0:00:00]} Bf6+ {[%emt 0:00:12]} 45. Kb3 {[%emt 0:00:00]} Rg3+ {[%emt 0:00:16]} 46. Ka2 {[%emt 0:00:00]} Rg2 {[%emt 0:00:04]} 47. Nd3 {[%emt 0:00:00]} h5 {[%emt 0:00:15]} 48. Re3 {[%emt 0:00:00]} h4 {[%emt 0:00:06] Strongly threatening ...Rg3.} 49. Ka3 {[%emt 0:00:00]} Rg3 {[%emt 0:00:22]} 50. Rxg3 {[%emt 0:00:00]} hxg3 {[%emt 0:00:02] KB-KN} 51. Ne1 {[%emt 0:00:00]} Be7+ {[%emt 0:00:02]} 52. b4 {[%emt 0:00:00]} f5 {[%emt 0:00:04][%cal Bf7f5,Bf5f4][%mdl 32]} 53. Ka4 {[%emt 0:00:00]} f4 {[%emt 0:00:06]} 54. b5 {[%emt 0:00:00]} Bc5 {[%emt 0:00:04] ( -> ...Bf2)} 55. Nd3 {[%emt 0:00:00] [#]} g2 $1 {[%emt 0:00:36] Black mates.} 56. Nxc5 {[%emt 0:00:00]} (56. b6 g1=Q) 56... g1=Q {[%emt 0:00:05]} 57. Kb4 {[%emt 0:00:00]} Qd4+ {[%emt 0:00:03]} 58. Ka5 {[%emt 0:00:00]} Qxc5 {[%emt 0:00:03]} 59. Ka6 {[%emt 0:00:00]} f3 {[%emt 0:00:04]} 60. b6 {[%emt 0:00:00]} f2 {[%emt 0:00:03]} 61. Ka7 {[%emt 0:00:00]} Qxb6+ {[%emt 0:00:04]} 62. Ka8 {[%emt 0:00:00]} Qb8+ {[%emt 0:00:02] Weighted Error Value: White=0.72/Black=0.35} 0-1